{"text_format":"3","workbook":"xlsx","n_sheets":2,"sheets":["Uw uitgaven","Rapport"],"not_rendered":{"charts":2,"images":1,"defined_names":6},"read":"whole","date_system":"1900"}

{"sheet":"Uw uitgaven","index":0,"n_rows":26,"n_cols":8,"rows_kept":26,"merged":[[1,1,1,7]]}
[]
[null,"Creëer uw voedingsmiddelenbudget. Bekijk tips in cellen in onderstaande tabelkop.\nU kunt een rapport maken in het werkblad Rapport."]
[null,"Datum","Categorie","Wat","Hoe \nveel","Prijs \nper artikel","Prijs \n(totaal)","Waar"]
[null,{"$f":"TODAY()","v":"2019-03-13"},"Snoep","Snoep",{"v":0.25,"d":"0.3"},{"v":6,"d":"€ 6.00"},{"$f":"Maandelijkse_kosten[[#This Row],[Prijs \nper artikel]]*Maandelijkse_kosten[[#This Row],[Hoe \nveel]]","v":{"v":1.5,"d":"€ 1.50"}},"Boodschappen"]
[null,{"$f":"TODAY()","v":"2019-03-13"},"Drinken","Coke",{"v":1,"d":"1.0"},{"v":1,"d":"€ 1.00"},{"$f":"Maandelijkse_kosten[[#This Row],[Prijs \nper artikel]]*Maandelijkse_kosten[[#This Row],[Hoe \nveel]]","v":{"v":1,"d":"€ 1.00"}},"Fast Food"]
[null,{"$f":"TODAY()-1","v":"2019-03-12"},"Kant-en-klaar maaltijden","Maaltijd",{"v":1,"d":"1.0"},{"v":28,"d":"€ 28.00"},{"$f":"Maandelijkse_kosten[[#This Row],[Prijs \nper artikel]]*Maandelijkse_kosten[[#This Row],[Hoe \nveel]]","v":{"v":28,"d":"€ 28.00"}},"Fast Food"]
[null,{"$f":"TODAY()-1","v":"2019-03-12"},"Vlees","Rundvlees",1.2,{"v":15,"d":"€ 15.00"},{"$f":"Maandelijkse_kosten[[#This Row],[Prijs \nper artikel]]*Maandelijkse_kosten[[#This Row],[Hoe \nveel]]","v":{"v":18,"d":"€ 18.00"}},"Boodschappen"]
[null,{"$f":"TODAY()-1","v":"2019-03-12"},"Alcohol","Whisky",{"v":1,"d":"1.0"},{"v":25,"d":"€ 25.00"},{"$f":"Maandelijkse_kosten[[#This Row],[Prijs \nper artikel]]*Maandelijkse_kosten[[#This Row],[Hoe \nveel]]","v":{"v":25,"d":"€ 25.00"}},"Boodschappen"]
[null,{"$f":"TODAY()-2","v":"2019-03-11"},"Drinken","Frisdrank",{"v":6,"d":"6.0"},{"v":1,"d":"€ 1.00"},{"$f":"Maandelijkse_kosten[[#This Row],[Prijs \nper artikel]]*Maandelijkse_kosten[[#This Row],[Hoe \nveel]]","v":{"v":6,"d":"€ 6.00"}},"Thuisbezorgd"]
[null,{"$f":"TODAY()-2","v":"2019-03-11"},"Kant-en-klaar maaltijden","Maaltijd",{"v":1,"d":"1.0"},{"v":10,"d":"€ 10.00"},{"$f":"Maandelijkse_kosten[[#This Row],[Prijs \nper artikel]]*Maandelijkse_kosten[[#This Row],[Hoe \nveel]]","v":{"v":10,"d":"€ 10.00"}},"Thuisbezorgd"]
[null,{"$f":"TODAY()-2","v":"2019-03-11"},"Groenten & fruit","Appels",{"v":2,"d":"2.0"},{"v":5,"d":"€ 5.00"},{"$f":"Maandelijkse_kosten[[#This Row],[Prijs \nper artikel]]*Maandelijkse_kosten[[#This Row],[Hoe \nveel]]","v":{"v":10,"d":"€ 10.00"}},"Thuisbezorgd"]
[null,{"$f":"TODAY()-2","v":"2019-03-11"},"Drinken","Water",{"v":1,"d":"1.0"},{"v":1,"d":"€ 1.00"},{"$f":"Maandelijkse_kosten[[#This Row],[Prijs \nper artikel]]*Maandelijkse_kosten[[#This Row],[Hoe \nveel]]","v":{"v":1,"d":"€ 1.00"}},"Boodschappen"]
[null,{"$f":"TODAY()-3","v":"2019-03-10"},"Drinken","Coke",{"v":1,"d":"1.0"},{"v":1,"d":"€ 1.00"},{"$f":"Maandelijkse_kosten[[#This Row],[Prijs \nper artikel]]*Maandelijkse_kosten[[#This Row],[Hoe \nveel]]","v":{"v":1,"d":"€ 1.00"}},"Fast Food"]
[null,{"$f":"TODAY()-3","v":"2019-03-10"},"Snoep","Chocolade",{"v":2,"d":"2.0"},{"v":3,"d":"€ 3.00"},{"$f":"Maandelijkse_kosten[[#This Row],[Prijs \nper artikel]]*Maandelijkse_kosten[[#This Row],[Hoe \nveel]]","v":{"v":6,"d":"€ 6.00"}},"Boodschappen"]
[null,{"$f":"TODAY()-3","v":"2019-03-10"},"Snoep","Snoep",{"v":5,"d":"5.0"},{"v":1,"d":"€ 1.00"},{"$f":"Maandelijkse_kosten[[#This Row],[Prijs \nper artikel]]*Maandelijkse_kosten[[#This Row],[Hoe \nveel]]","v":{"v":5,"d":"€ 5.00"}},"Boodschappen"]
[null,{"$f":"TODAY()-3","v":"2019-03-10"},"Drinken","Water",{"v":2,"d":"2.0"},{"v":0.75,"d":"€ 0.75"},{"$f":"Maandelijkse_kosten[[#This Row],[Prijs \nper artikel]]*Maandelijkse_kosten[[#This Row],[Hoe \nveel]]","v":{"v":1.5,"d":"€ 1.50"}},"Café‘s"]
[null,{"$f":"TODAY()-4","v":"2019-03-09"},"Kant-en-klaar maaltijden","Rijst",{"v":1,"d":"1.0"},{"v":3.25,"d":"€ 3.25"},{"$f":"Maandelijkse_kosten[[#This Row],[Prijs \nper artikel]]*Maandelijkse_kosten[[#This Row],[Hoe \nveel]]","v":{"v":3.25,"d":"€ 3.25"}},"Restaurant"]
[null,{"$f":"TODAY()-4","v":"2019-03-09"},"Vlees","Rundvlees",0.6,{"v":12,"d":"€ 12.00"},{"$f":"Maandelijkse_kosten[[#This Row],[Prijs \nper artikel]]*Maandelijkse_kosten[[#This Row],[Hoe \nveel]]","v":{"v":7.199999999999999,"d":"€ 7.20"}},"Boodschappen"]
[null,{"$f":"TODAY()-4","v":"2019-03-09"},"Alcohol","Bier",{"v":1,"d":"1.0"},{"v":2,"d":"€ 2.00"},{"$f":"Maandelijkse_kosten[[#This Row],[Prijs \nper artikel]]*Maandelijkse_kosten[[#This Row],[Hoe \nveel]]","v":{"v":2,"d":"€ 2.00"}},"Restaurant"]
[null,{"$f":"TODAY()-4","v":"2019-03-09"},"Drinken","Frisdrank",{"v":1,"d":"1.0"},{"v":1,"d":"€ 1.00"},{"$f":"Maandelijkse_kosten[[#This Row],[Prijs \nper artikel]]*Maandelijkse_kosten[[#This Row],[Hoe \nveel]]","v":{"v":1,"d":"€ 1.00"}},"Boodschappen"]
[null,{"$f":"TODAY()-5","v":"2019-03-08"},"Kant-en-klaar maaltijden","Maaltijd",{"v":1,"d":"1.0"},{"v":10,"d":"€ 10.00"},{"$f":"Maandelijkse_kosten[[#This Row],[Prijs \nper artikel]]*Maandelijkse_kosten[[#This Row],[Hoe \nveel]]","v":{"v":10,"d":"€ 10.00"}},"Fast Food"]
[null,{"$f":"TODAY()-5","v":"2019-03-08"},"Groenten & fruit","Bananen",{"v":2,"d":"2.0"},{"v":3,"d":"€ 3.00"},{"$f":"Maandelijkse_kosten[[#This Row],[Prijs \nper artikel]]*Maandelijkse_kosten[[#This Row],[Hoe \nveel]]","v":{"v":6,"d":"€ 6.00"}},"Thuisbezorgd"]
[null,{"$f":"TODAY()-5","v":"2019-03-08"},"Drinken","Coke",{"v":1,"d":"1.0"},{"v":0.75,"d":"€ 0.75"},{"$f":"Maandelijkse_kosten[[#This Row],[Prijs \nper artikel]]*Maandelijkse_kosten[[#This Row],[Hoe \nveel]]","v":{"v":0.75,"d":"€ 0.75"}},"Boodschappen"]
[null,{"$f":"TODAY()-5","v":"2019-03-08"},"Alcohol","Bier",{"v":1,"d":"1.0"},{"v":1,"d":"€ 1.00"},{"$f":"Maandelijkse_kosten[[#This Row],[Prijs \nper artikel]]*Maandelijkse_kosten[[#This Row],[Hoe \nveel]]","v":{"v":1,"d":"€ 1.00"}},"Café‘s"]
[null,{"$f":"TODAY()-5","v":"2019-03-08"},"Brood","Broodjes",{"v":5,"d":"5.0"},{"v":0.2,"d":"€ 0.20"},{"$f":"Maandelijkse_kosten[[#This Row],[Prijs \nper artikel]]*Maandelijkse_kosten[[#This Row],[Hoe \nveel]]","v":{"v":1,"d":"€ 1.00"}},"Boodschappen"]
[null,"Totaal",{"$nulls":4},{"$f":"SUBTOTAL(109,Maandelijkse_kosten[Prijs \n(totaal)])","v":{"v":146.2,"d":"€ 146.20"}}]

{"sheet":"Rapport","index":1,"n_rows":29,"n_cols":6,"rows_kept":29,"merged":[[0,1,0,7],[5,1,5,2],[18,1,18,2]]}
[null,"De uitgaven inchecken gekozen punt. "]
[]
[null,"Eerste dag",{"$f":"TODAY()-1","v":"2019-03-12"},null,"Laatste dag",{"$f":"TODAY()","v":"2019-03-13"}]
[]
[]
[null,"Uitgaven per categorie"]
[]
[null,"Categorie","Uitgaven"]
[null,"Alcohol",{"$f":"SUMIFS(Maandelijkse_kosten[Prijs \n(totaal)],Maandelijkse_kosten[Datum],\">=\"&Begindatum,Maandelijkse_kosten[Datum],\"<=\"&Einddatum,Maandelijkse_kosten[Categorie],Uitgaven_per_categorie[[#This Row],[Categorie]])","v":{"v":25,"d":"€ 25.00"}}]
[null,"Brood",{"$f":"SUMIFS(Maandelijkse_kosten[Prijs \n(totaal)],Maandelijkse_kosten[Datum],\">=\"&Begindatum,Maandelijkse_kosten[Datum],\"<=\"&Einddatum,Maandelijkse_kosten[Categorie],Uitgaven_per_categorie[[#This Row],[Categorie]])","v":{"v":0,"d":"€ 0.00"}}]
[null,"Drinken",{"$f":"SUMIFS(Maandelijkse_kosten[Prijs \n(totaal)],Maandelijkse_kosten[Datum],\">=\"&Begindatum,Maandelijkse_kosten[Datum],\"<=\"&Einddatum,Maandelijkse_kosten[Categorie],Uitgaven_per_categorie[[#This Row],[Categorie]])","v":{"v":1,"d":"€ 1.00"}}]
[null,"Groenten & fruit",{"$f":"SUMIFS(Maandelijkse_kosten[Prijs \n(totaal)],Maandelijkse_kosten[Datum],\">=\"&Begindatum,Maandelijkse_kosten[Datum],\"<=\"&Einddatum,Maandelijkse_kosten[Categorie],Uitgaven_per_categorie[[#This Row],[Categorie]])","v":{"v":0,"d":"€ 0.00"}}]
[null,"Vlees",{"$f":"SUMIFS(Maandelijkse_kosten[Prijs \n(totaal)],Maandelijkse_kosten[Datum],\">=\"&Begindatum,Maandelijkse_kosten[Datum],\"<=\"&Einddatum,Maandelijkse_kosten[Categorie],Uitgaven_per_categorie[[#This Row],[Categorie]])","v":{"v":18,"d":"€ 18.00"}}]
[null,"Kant-en-klaar maaltijden",{"$f":"SUMIFS(Maandelijkse_kosten[Prijs \n(totaal)],Maandelijkse_kosten[Datum],\">=\"&Begindatum,Maandelijkse_kosten[Datum],\"<=\"&Einddatum,Maandelijkse_kosten[Categorie],Uitgaven_per_categorie[[#This Row],[Categorie]])","v":{"v":28,"d":"€ 28.00"}}]
[null,"Snoep",{"$f":"SUMIFS(Maandelijkse_kosten[Prijs \n(totaal)],Maandelijkse_kosten[Datum],\">=\"&Begindatum,Maandelijkse_kosten[Datum],\"<=\"&Einddatum,Maandelijkse_kosten[Categorie],Uitgaven_per_categorie[[#This Row],[Categorie]])","v":{"v":1.5,"d":"€ 1.50"}}]
[null,"Overige",{"$f":"SUMIFS(Maandelijkse_kosten[Prijs \n(totaal)],Maandelijkse_kosten[Datum],\">=\"&Begindatum,Maandelijkse_kosten[Datum],\"<=\"&Einddatum,Maandelijkse_kosten[Categorie],Uitgaven_per_categorie[[#This Row],[Categorie]])","v":{"v":0,"d":"€ 0.00"}}]
[null,"Totaal",{"$f":"SUBTOTAL(109,Uitgaven_per_categorie[Uitgaven])","v":{"v":73.5,"d":"€ 73.50"}}]
[]
[null,"Uitgaven per plaats"]
[]
[null,"Lijst met plaatsen","Uitgaven"]
[null,"Markt",{"$f":"SUMIFS(Maandelijkse_kosten[Prijs \n(totaal)],Maandelijkse_kosten[Datum],\">=\"&Begindatum,Maandelijkse_kosten[Datum],\"<=\"&Einddatum,Maandelijkse_kosten[Waar],Uitgaven_per_plaats[[#This Row],[Lijst met plaatsen]])","v":{"v":0,"d":"€ 0.00"}}]
[null,"Café‘s",{"$f":"SUMIFS(Maandelijkse_kosten[Prijs \n(totaal)],Maandelijkse_kosten[Datum],\">=\"&Begindatum,Maandelijkse_kosten[Datum],\"<=\"&Einddatum,Maandelijkse_kosten[Waar],Uitgaven_per_plaats[[#This Row],[Lijst met plaatsen]])","v":{"v":0,"d":"€ 0.00"}}]
[null,"Fast Food",{"$f":"SUMIFS(Maandelijkse_kosten[Prijs \n(totaal)],Maandelijkse_kosten[Datum],\">=\"&Begindatum,Maandelijkse_kosten[Datum],\"<=\"&Einddatum,Maandelijkse_kosten[Waar],Uitgaven_per_plaats[[#This Row],[Lijst met plaatsen]])","v":{"v":29,"d":"€ 29.00"}}]
[null,"Boodschappen",{"$f":"SUMIFS(Maandelijkse_kosten[Prijs \n(totaal)],Maandelijkse_kosten[Datum],\">=\"&Begindatum,Maandelijkse_kosten[Datum],\"<=\"&Einddatum,Maandelijkse_kosten[Waar],Uitgaven_per_plaats[[#This Row],[Lijst met plaatsen]])","v":{"v":44.5,"d":"€ 44.50"}}]
[null,"Thuisbezorgd",{"$f":"SUMIFS(Maandelijkse_kosten[Prijs \n(totaal)],Maandelijkse_kosten[Datum],\">=\"&Begindatum,Maandelijkse_kosten[Datum],\"<=\"&Einddatum,Maandelijkse_kosten[Waar],Uitgaven_per_plaats[[#This Row],[Lijst met plaatsen]])","v":{"v":0,"d":"€ 0.00"}}]
[null,"Restaurant",{"$f":"SUMIFS(Maandelijkse_kosten[Prijs \n(totaal)],Maandelijkse_kosten[Datum],\">=\"&Begindatum,Maandelijkse_kosten[Datum],\"<=\"&Einddatum,Maandelijkse_kosten[Waar],Uitgaven_per_plaats[[#This Row],[Lijst met plaatsen]])","v":{"v":0,"d":"€ 0.00"}}]
[null,"Overige",{"$f":"SUMIFS(Maandelijkse_kosten[Prijs \n(totaal)],Maandelijkse_kosten[Datum],\">=\"&Begindatum,Maandelijkse_kosten[Datum],\"<=\"&Einddatum,Maandelijkse_kosten[Waar],Uitgaven_per_plaats[[#This Row],[Lijst met plaatsen]])","v":{"v":0,"d":"€ 0.00"}}]
[null,"Totaal",{"$f":"SUBTOTAL(109,Uitgaven_per_plaats[Uitgaven])","v":{"v":73.5,"d":"€ 73.50"}}]